[Event "December 19 Early 2023"]
[Site "https://www.chess.com"]
[Date "2023.12.19"]
[Round "3"]
[White "Szpar, Milosz"]
[Black "Korkmaz, Necmettin"]
[Result "1-0"]
[Board "79"]
[TimeControl "180+1"]
[WhiteFideId "1184989"]
[BlackFideId "6303285"]
[WhiteElo "2446"]
[BlackElo "2044"]
[WhiteTeam "POL"]
[BlackTeam "TUR"]
[WhiteClock "0:01:14"]
[BlackClock "0:00:21"]

1. e4 {[%clk 0:03:00]}  e6 {[%clk 0:02:58]} 2. d4 {[%clk 0:03:00]}  d5 {[%clk 0:02:49]} 3. e5 {[%clk 0:03:00]}  c5 {[%clk 0:02:48]} 4. c3 {[%clk 0:02:56]}  Nc6 {[%clk 0:02:41]} 5. Nf3 {[%clk 0:02:56]}  Qb6 {[%clk 0:02:40]} 6. Bd3 {[%clk 0:02:50]}  cxd4 {[%clk 0:02:39]} 7. O-O {[%clk 0:02:47]}  Bd7 {[%clk 0:02:39]} 8. h4 {[%clk 0:02:39]}  Nge7 {[%clk 0:02:35]} 9. Re1 {[%clk 0:02:35]}  h6 {[%clk 0:02:28]} 10. Nbd2 {[%clk 0:02:34]}  Nf5 {[%clk 0:02:03]} 11. Qe2 {[%clk 0:02:19]}  Be7 {[%clk 0:02:01]} 12. h5 {[%clk 0:02:19]}  dxc3 {[%clk 0:01:57]} 13. bxc3 {[%clk 0:02:19]}  O-O {[%clk 0:01:53]} 14. Rb1 {[%clk 0:02:16]}  Qc7 {[%clk 0:01:53]} 15. g4 {[%clk 0:02:01]}  Nh4 {[%clk 0:01:52]} 16. Nxh4 {[%clk 0:02:02]}  Bxh4 {[%clk 0:01:52]} 17. Nf3 {[%clk 0:02:03]}  Be7 {[%clk 0:01:50]} 18. Bc2 {[%clk 0:02:03]}  Na5 {[%clk 0:01:29]} 19. Qd3 {[%clk 0:02:01]}  f5 {[%clk 0:01:29]} 20. exf6 {[%clk 0:01:59]}  Rxf6 {[%clk 0:01:29]} 21. Qh7+ {[%clk 0:01:56]}  Kf7 {[%clk 0:01:22]} 22. Bg6+ {[%clk 0:01:48]}  Rxg6 {[%clk 0:01:22]} 23. hxg6+ {[%clk 0:01:47]}  Kf6 {[%clk 0:01:21]} 24. g5+ {[%clk 0:01:45]}  Kf5 {[%clk 0:01:11]} 25. Qxg7 {[%clk 0:01:40]}  Bxg5 {[%clk 0:00:42]} 26. Qf7+ {[%clk 0:01:35]}  Kg4 {[%clk 0:00:41]} 27. Ne5+ {[%clk 0:01:26]}  Kh4 {[%clk 0:00:29]} 28. Rb4+ {[%clk 0:01:20]}  Nc4 {[%clk 0:00:28]} 29. Rxc4+ {[%clk 0:01:19]}  dxc4 {[%clk 0:00:28]} 30. Re4+ {[%clk 0:01:19]}  Kh5 {[%clk 0:00:21]} 31. g7# {[%clk 0:01:14]} 1-0

[Event "December 19 Early 2023"]
[Site "https://www.chess.com"]
[Date "2023.12.19"]
[Round "3"]
[White "noblerone"]
[Black "Materia, Marco"]
[Result "0-1"]
[Board "80"]
[TimeControl "180+1"]
[BlackFideId "45150451"]
[WhiteElo "2507"]
[BlackElo "2451"]
[BlackTeam "FRA"]
[WhiteClock "0:00:01"]
[BlackClock "0:00:51"]

1. d4 {[%clk 0:03:00]}  Nf6 {[%clk 0:02:59]} 2. Nf3 {[%clk 0:02:58]}  d5 {[%clk 0:02:59]} 3. Bg5 {[%clk 0:02:58]}  Ne4 {[%clk 0:02:57]} 4. Bf4 {[%clk 0:02:58]}  Bf5 {[%clk 0:02:55]} 5. e3 {[%clk 0:02:55]}  e6 {[%clk 0:02:55]} 6. h3 {[%clk 0:02:50]}  h6 {[%clk 0:02:55]} 7. a3 {[%clk 0:02:49]}  Nd7 {[%clk 0:02:52]} 8. c4 {[%clk 0:02:49]}  Bd6 {[%clk 0:02:50]} 9. Bxd6 {[%clk 0:02:46]}  Nxd6 {[%clk 0:02:49]} 10. cxd5 {[%clk 0:02:35]}  exd5 {[%clk 0:02:49]} 11. Nc3 {[%clk 0:02:35]}  c6 {[%clk 0:02:50]} 12. Bd3 {[%clk 0:02:34]}  Bxd3 {[%clk 0:02:49]} 13. Qxd3 {[%clk 0:02:35]}  O-O {[%clk 0:02:49]} 14. O-O {[%clk 0:02:34]}  a5 {[%clk 0:02:46]} 15. Nd2 {[%clk 0:02:24]}  Re8 {[%clk 0:02:45]} 16. Rfc1 {[%clk 0:02:19]}  Nb6 {[%clk 0:02:41]} 17. b4 {[%clk 0:01:59]}  axb4 {[%clk 0:02:33]} 18. axb4 {[%clk 0:02:00]}  Nbc4 {[%clk 0:02:13]} 19. Nxc4 {[%clk 0:01:57]}  dxc4 {[%clk 0:02:11]} 20. Qe2 {[%clk 0:01:52]}  b5 {[%clk 0:02:06]} 21. Qf3 {[%clk 0:01:52]}  Qd7 {[%clk 0:02:04]} 22. Rxa8 {[%clk 0:01:29]}  Rxa8 {[%clk 0:02:03]} 23. d5 {[%clk 0:01:27]}  cxd5 {[%clk 0:01:59]} 24. Qxd5 {[%clk 0:01:28]}  Rd8 {[%clk 0:01:48]} 25. Rd1 {[%clk 0:01:25]}  Qe8 {[%clk 0:01:38]} 26. Qc5 {[%clk 0:00:40]}  Qf8 {[%clk 0:01:27]} 27. Nxb5 {[%clk 0:00:27]}  Nxb5 {[%clk 0:01:25]} 28. Rxd8 {[%clk 0:00:26]}  Qxd8 {[%clk 0:01:26]} 29. Qxb5 {[%clk 0:00:26]}  c3 {[%clk 0:01:23]} 30. Qc6 {[%clk 0:00:19]}  Qd3 {[%clk 0:01:14]} 31. Kh2 {[%clk 0:00:14]}  c2 {[%clk 0:01:14]} 32. b5 {[%clk 0:00:11]}  Kh7 {[%clk 0:01:00]} 33. b6 {[%clk 0:00:08]}  Qb3 {[%clk 0:00:54]} 34. b7 {[%clk 0:00:06]}  Qb2 {[%clk 0:00:53]} 35. Qe4+ {[%clk 0:00:05]}  g6 {[%clk 0:00:52]} 36. b8=Q {[%clk 0:00:01]}  Qxb8+ {[%clk 0:00:51]} 0-1

[Event "December 19 Early 2023"]
[Site "https://www.chess.com"]
[Date "2023.12.19"]
[Round "3"]
[White "Brodsky, David"]
[Black "Sadovsky, Artem"]
[Result "1-0"]
[Board "82"]
[TimeControl "180+1"]
[WhiteFideId "2073250"]
[BlackFideId "4155840"]
[WhiteElo "2824"]
[BlackElo "2314"]
[WhiteTeam "USA"]
[BlackTeam "FID"]
[WhiteClock "0:00:17"]
[BlackClock "0:00:00"]

1. d4 {[%clk 0:03:00]}  g6 {[%clk 0:02:57]} 2. e4 {[%clk 0:03:00]}  Bg7 {[%clk 0:02:57]} 3. Nf3 {[%clk 0:02:59]}  d6 {[%clk 0:02:57]} 4. Bc4 {[%clk 0:02:59]}  e6 {[%clk 0:02:56]} 5. O-O {[%clk 0:02:59]}  Ne7 {[%clk 0:02:55]} 6. Bg5 {[%clk 0:02:56]}  h6 {[%clk 0:02:56]} 7. Be3 {[%clk 0:02:55]}  g5 {[%clk 0:02:52]} 8. h3 {[%clk 0:02:51]}  Ng6 {[%clk 0:02:52]} 9. a4 {[%clk 0:02:49]}  Nd7 {[%clk 0:02:46]} 10. a5 {[%clk 0:02:50]}  a6 {[%clk 0:02:46]} 11. c3 {[%clk 0:02:48]}  Nf6 {[%clk 0:02:39]} 12. Nbd2 {[%clk 0:02:47]}  g4 {[%clk 0:02:22]} 13. Nh2 {[%clk 0:02:34]}  gxh3 {[%clk 0:01:48]} 14. gxh3 {[%clk 0:02:29]}  e5 {[%clk 0:01:33]} 15. Kh1 {[%clk 0:02:09]}  Bxh3 {[%clk 0:01:30]} 16. Rg1 {[%clk 0:02:10]}  Qe7 {[%clk 0:01:21]} 17. Qf3 {[%clk 0:01:47]}  Bd7 {[%clk 0:00:49]} 18. b4 {[%clk 0:01:32]}  Nh4 {[%clk 0:00:38]} 19. Qe2 {[%clk 0:01:13]}  Bf8 {[%clk 0:00:19]} 20. b5 {[%clk 0:01:03]}  axb5 {[%clk 0:00:18]} 21. Bxb5 {[%clk 0:01:03]}  c6 {[%clk 0:00:14]} 22. Bd3 {[%clk 0:00:58]}  Ng6 {[%clk 0:00:14]} 23. Rgb1 {[%clk 0:00:52]}  Bc8 {[%clk 0:00:14]} 24. Nc4 {[%clk 0:00:48]}  Nd7 {[%clk 0:00:11]} 25. a6 {[%clk 0:00:36]}  b5 {[%clk 0:00:10]} 26. Na5 {[%clk 0:00:34]}  Rxa6 {[%clk 0:00:10]} 27. d5 {[%clk 0:00:29]}  cxd5 {[%clk 0:00:08]} 28. Bxb5 {[%clk 0:00:28]}  Rxa5 {[%clk 0:00:05]} 29. Rxa5 {[%clk 0:00:29]}  dxe4 {[%clk 0:00:03]} 30. Ra8 {[%clk 0:00:27]}  Qd8 {[%clk 0:00:03]} 31. Qc4 {[%clk 0:00:24]}  Ne7 {[%clk 0:00:03]} 32. Ba6 {[%clk 0:00:17]}  f5 {[%clk 0:00:00]} 33. Bxc8 {[%clk 0:00:17]} 1-0

[Event "December 19 Early 2023"]
[Site "https://www.chess.com"]
[Date "2023.12.19"]
[Round "3"]
[White "Krzywda, Andrzej"]
[Black "Dyachuk, Artem"]
[Result "1-0"]
[Board "84"]
[TimeControl "180+1"]
[WhiteFideId "1114565"]
[BlackFideId "34107924"]
[WhiteElo "2130"]
[BlackElo "2244"]
[WhiteTeam "POL"]
[BlackTeam "UKR"]
[WhiteClock "0:00:09"]
[BlackClock "0:00:00"]

1. e4 {[%clk 0:03:00]}  e5 {[%clk 0:02:58]} 2. Nf3 {[%clk 0:03:01]}  Nc6 {[%clk 0:02:59]} 3. Bb5 {[%clk 0:03:02]}  a6 {[%clk 0:02:59]} 4. Ba4 {[%clk 0:03:02]}  Nf6 {[%clk 0:02:59]} 5. O-O {[%clk 0:03:03]}  Bc5 {[%clk 0:03:00]} 6. c3 {[%clk 0:02:51]}  d6 {[%clk 0:03:00]} 7. d4 {[%clk 0:02:49]}  Ba7 {[%clk 0:02:57]} 8. dxe5 {[%clk 0:02:27]}  dxe5 {[%clk 0:02:56]} 9. Qxd8+ {[%clk 0:02:20]}  Kxd8 {[%clk 0:02:57]} 10. Bxc6 {[%clk 0:02:20]}  bxc6 {[%clk 0:02:58]} 11. Nxe5 {[%clk 0:02:20]}  Ke8 {[%clk 0:02:59]} 12. Nxc6 {[%clk 0:02:17]}  Bb6 {[%clk 0:03:00]} 13. Nd2 {[%clk 0:01:50]}  Bb7 {[%clk 0:02:59]} 14. Ne5 {[%clk 0:01:41]}  Ke7 {[%clk 0:02:53]} 15. Re1 {[%clk 0:01:34]}  Rhd8 {[%clk 0:02:52]} 16. Ndc4 {[%clk 0:01:15]}  Ba7 {[%clk 0:02:33]} 17. Be3 {[%clk 0:01:14]}  Bxe3 {[%clk 0:02:32]} 18. Rxe3 {[%clk 0:01:14]}  Kf8 {[%clk 0:02:19]} 19. f3 {[%clk 0:01:06]}  a5 {[%clk 0:02:19]} 20. Ree1 {[%clk 0:00:54]}  a4 {[%clk 0:01:56]} 21. Red1 {[%clk 0:00:54]}  Ba6 {[%clk 0:01:51]} 22. Kf2 {[%clk 0:00:48]}  Nh5 {[%clk 0:01:46]} 23. Ne3 {[%clk 0:00:41]}  Nf4 {[%clk 0:01:37]} 24. g3 {[%clk 0:00:38]}  Ne6 {[%clk 0:01:37]} 25. Nc6 {[%clk 0:00:34]}  Re8 {[%clk 0:01:23]} 26. b4 {[%clk 0:00:27]}  Bb7 {[%clk 0:01:11]} 27. Nd4 {[%clk 0:00:26]}  Nd8 {[%clk 0:00:53]} 28. Nb5 {[%clk 0:00:25]}  Rc8 {[%clk 0:00:33]} 29. Rd7 {[%clk 0:00:25]}  Ne6 {[%clk 0:00:30]} 30. Nd4 {[%clk 0:00:21]}  Nd8 {[%clk 0:00:26]} 31. Rd1 {[%clk 0:00:20]}  h5 {[%clk 0:00:21]} 32. h4 {[%clk 0:00:20]}  g6 {[%clk 0:00:21]} 33. Nc4 {[%clk 0:00:19]}  Ba6 {[%clk 0:00:08]} 34. Na5 {[%clk 0:00:19]}  c5 {[%clk 0:00:05]} 35. Nc2 {[%clk 0:00:14]}  cxb4 {[%clk 0:00:05]} 36. Nxb4 {[%clk 0:00:14]}  Ne6 {[%clk 0:00:05]} 37. Nbc6 {[%clk 0:00:13]}  Bb5 {[%clk 0:00:04]} 38. R7d6 {[%clk 0:00:12]}  Rc7 {[%clk 0:00:03]} 39. c4 {[%clk 0:00:12]}  Bxc6 {[%clk 0:00:04]} 40. Nxc6 {[%clk 0:00:13]}  Rec8 {[%clk 0:00:03]} 41. Ne5 {[%clk 0:00:13]}  Ke7 {[%clk 0:00:02]} 42. Rd7+ {[%clk 0:00:12]}  Kf6 {[%clk 0:00:02]} 43. Rxc7 {[%clk 0:00:12]}  Rxc7 {[%clk 0:00:03]} 44. f4 {[%clk 0:00:12]}  Nc5 {[%clk 0:00:03]} 45. Ke3 {[%clk 0:00:12]}  Ke6 {[%clk 0:00:03]} 46. Rb1 {[%clk 0:00:11]}  f6 {[%clk 0:00:03]} 47. Rb6+ {[%clk 0:00:11]}  Ke7 {[%clk 0:00:04]} 48. Nxg6+ {[%clk 0:00:11]}  Kf7 {[%clk 0:00:05]} 49. f5 {[%clk 0:00:12]}  Rd7 {[%clk 0:00:05]} 50. Nf4 {[%clk 0:00:12]}  Rd1 {[%clk 0:00:04]} 51. Nd5 {[%clk 0:00:11]}  Re1+ {[%clk 0:00:02]} 52. Kf3 {[%clk 0:00:12]}  Nxe4 {[%clk 0:00:02]} 53. Rb7+ {[%clk 0:00:09]}  Kf8 {[%clk 0:00:02]} 54. c5 {[%clk 0:00:08]}  Nxc5 {[%clk 0:00:00]} 55. Ra7 {[%clk 0:00:09]} 1-0

[Event "December 19 Early 2023"]
[Site "https://www.chess.com"]
[Date "2023.12.19"]
[Round "3"]
[White "Grochal, Joey"]
[Black "Dragun, Kamil"]
[Result "0-1"]
[Board "87"]
[TimeControl "180+1"]
[WhiteFideId "1019945"]
[BlackFideId "1134167"]
[WhiteElo "2231"]
[BlackElo "2551"]
[WhiteTeam "NED"]
[BlackTeam "POL"]
[WhiteClock "0:00:46"]
[BlackClock "0:00:36"]

1. e4 {[%clk 0:03:00]}  e5 {[%clk 0:02:59]} 2. Nf3 {[%clk 0:03:00]}  Nc6 {[%clk 0:03:00]} 3. Bb5 {[%clk 0:02:59]}  a6 {[%clk 0:03:00]} 4. Ba4 {[%clk 0:02:59]}  Nf6 {[%clk 0:03:00]} 5. O-O {[%clk 0:02:59]}  Be7 {[%clk 0:03:01]} 6. Re1 {[%clk 0:02:59]}  b5 {[%clk 0:03:01]} 7. Bb3 {[%clk 0:03:00]}  O-O {[%clk 0:03:02]} 8. d3 {[%clk 0:02:57]}  d6 {[%clk 0:02:57]} 9. c3 {[%clk 0:02:56]}  Be6 {[%clk 0:02:42]} 10. Nbd2 {[%clk 0:02:55]}  Bxb3 {[%clk 0:02:41]} 11. Qxb3 {[%clk 0:02:55]}  Re8 {[%clk 0:02:36]} 12. Nf1 {[%clk 0:02:54]}  h6 {[%clk 0:02:35]} 13. Ne3 {[%clk 0:02:54]}  Bf8 {[%clk 0:02:34]} 14. a4 {[%clk 0:02:51]}  Rb8 {[%clk 0:02:31]} 15. axb5 {[%clk 0:02:51]}  axb5 {[%clk 0:02:32]} 16. Nd5 {[%clk 0:02:42]}  Nxd5 {[%clk 0:02:26]} 17. Qxd5 {[%clk 0:02:42]}  Ne7 {[%clk 0:02:25]} 18. Qb3 {[%clk 0:02:41]}  Qd7 {[%clk 0:02:03]} 19. Be3 {[%clk 0:02:35]}  Ra8 {[%clk 0:02:00]} 20. h3 {[%clk 0:02:30]}  c5 {[%clk 0:01:57]} 21. Red1 {[%clk 0:02:22]}  Qc6 {[%clk 0:01:56]} 22. d4 {[%clk 0:02:06]}  exd4 {[%clk 0:01:50]} 23. cxd4 {[%clk 0:02:05]}  c4 {[%clk 0:01:33]} 24. Qc2 {[%clk 0:02:03]}  d5 {[%clk 0:01:34]} 25. e5 {[%clk 0:02:01]}  b4 {[%clk 0:01:33]} 26. Nh2 {[%clk 0:01:53]}  b3 {[%clk 0:01:33]} 27. Qd2 {[%clk 0:01:48]}  Nf5 {[%clk 0:01:27]} 28. Bf4 {[%clk 0:01:34]}  Ra2 {[%clk 0:01:20]} 29. g4 {[%clk 0:01:25]}  Nh4 {[%clk 0:01:08]} 30. Bg3 {[%clk 0:01:24]}  Ng6 {[%clk 0:01:04]} 31. f4 {[%clk 0:01:23]}  Qa4 {[%clk 0:01:01]} 32. Rab1 {[%clk 0:01:19]}  Bb4 {[%clk 0:00:58]} 33. Qe3 {[%clk 0:01:14]}  Rc8 {[%clk 0:00:47]} 34. Rdc1 {[%clk 0:01:12]}  c3 {[%clk 0:00:41]} 35. bxc3 {[%clk 0:01:08]}  Ba3 {[%clk 0:00:38]} 36. Re1 {[%clk 0:01:03]}  Rc2 {[%clk 0:00:38]} 37. f5 {[%clk 0:01:01]}  R8xc3 {[%clk 0:00:37]} 38. fxg6 {[%clk 0:00:54]}  Rxe3 {[%clk 0:00:36]} 39. gxf7+ {[%clk 0:00:54]}  Kxf7 {[%clk 0:00:35]} 40. Rxe3 {[%clk 0:00:55]}  Rc1+ {[%clk 0:00:36]} 41. Rxc1 {[%clk 0:00:52]}  Bxc1 {[%clk 0:00:37]} 42. e6+ {[%clk 0:00:51]}  Ke8 {[%clk 0:00:37]} 43. Bd6 {[%clk 0:00:46]}  Bxe3+ {[%clk 0:00:36]} 0-1

[Event "December 19 Early 2023"]
[Site "https://www.chess.com"]
[Date "2023.12.19"]
[Round "3"]
[White "Cervantes Landeiro, Thalia"]
[Black "Rustemov, Alexander"]
[Result "1/2-1/2"]
[Board "88"]
[TimeControl "180+1"]
[WhiteFideId "3520498"]
[BlackFideId "4119002"]
[WhiteElo "2189"]
[BlackElo "2789"]
[WhiteTeam "USA"]
[BlackTeam "RUS"]
[WhiteClock "0:00:14"]
[BlackClock "0:00:25"]

1. d4 {[%clk 0:03:00]}  d5 {[%clk 0:02:59]} 2. c4 {[%clk 0:03:01]}  c6 {[%clk 0:02:59]} 3. Nf3 {[%clk 0:03:01]}  Nf6 {[%clk 0:03:00]} 4. e3 {[%clk 0:03:01]}  a6 {[%clk 0:03:00]} 5. Bd3 {[%clk 0:02:58]}  Bg4 {[%clk 0:02:59]} 6. Nbd2 {[%clk 0:02:56]}  e6 {[%clk 0:03:00]} 7. b3 {[%clk 0:02:55]}  Nbd7 {[%clk 0:02:59]} 8. h3 {[%clk 0:02:55]}  Bh5 {[%clk 0:02:55]} 9. Bb2 {[%clk 0:02:54]}  Bd6 {[%clk 0:02:55]} 10. O-O {[%clk 0:02:53]}  O-O {[%clk 0:02:54]} 11. Qc2 {[%clk 0:02:52]}  Bg6 {[%clk 0:02:53]} 12. Ne5 {[%clk 0:02:33]}  Bxd3 {[%clk 0:02:51]} 13. Qxd3 {[%clk 0:02:33]}  Qe7 {[%clk 0:02:46]} 14. Nxd7 {[%clk 0:02:26]}  Qxd7 {[%clk 0:02:44]} 15. c5 {[%clk 0:02:24]}  Bc7 {[%clk 0:02:43]} 16. f4 {[%clk 0:02:24]}  g6 {[%clk 0:02:13]} 17. b4 {[%clk 0:02:18]}  Nh5 {[%clk 0:02:08]} 18. a4 {[%clk 0:02:02]}  f5 {[%clk 0:02:06]} 19. Bc3 {[%clk 0:01:56]}  Ng3 {[%clk 0:02:03]} 20. Rfb1 {[%clk 0:01:53]}  Ne4 {[%clk 0:01:56]} 21. Nxe4 {[%clk 0:01:50]}  fxe4 {[%clk 0:01:56]} 22. Qe2 {[%clk 0:01:50]}  b5 {[%clk 0:01:45]} 23. axb5 {[%clk 0:01:40]}  axb5 {[%clk 0:01:45]} 24. Ra2 {[%clk 0:01:40]}  Ra4 {[%clk 0:01:37]} 25. Rba1 {[%clk 0:01:39]}  Rfa8 {[%clk 0:01:36]} 26. Rxa4 {[%clk 0:01:36]}  bxa4 {[%clk 0:01:36]} 27. Qc2 {[%clk 0:01:34]}  Qc8 {[%clk 0:01:16]} 28. Rxa4 {[%clk 0:01:33]}  Qb7 {[%clk 0:01:17]} 29. Qa2 {[%clk 0:01:31]}  Rxa4 {[%clk 0:01:16]} 30. Qxa4 {[%clk 0:01:32]}  Kf7 {[%clk 0:01:13]} 31. Be1 {[%clk 0:01:16]}  Bd8 {[%clk 0:01:13]} 32. Bd2 {[%clk 0:01:11]}  Ke8 {[%clk 0:01:12]} 33. Kh2 {[%clk 0:01:09]}  Kd7 {[%clk 0:01:11]} 34. Qa2 {[%clk 0:00:55]}  Kc8 {[%clk 0:01:10]} 35. Qa4 {[%clk 0:00:51]}  Kb8 {[%clk 0:01:11]} 36. Qd1 {[%clk 0:00:50]}  Kc8 {[%clk 0:01:05]} 37. Qg4 {[%clk 0:00:50]}  Qf7 {[%clk 0:01:05]} 38. Qe2 {[%clk 0:00:43]}  Qb7 {[%clk 0:01:04]} 39. g4 {[%clk 0:00:40]}  Qa8 {[%clk 0:01:02]} 40. f5 {[%clk 0:00:38]}  exf5 {[%clk 0:00:58]} 41. gxf5 {[%clk 0:00:39]}  Qa2 {[%clk 0:00:58]} 42. fxg6 {[%clk 0:00:35]}  hxg6 {[%clk 0:00:58]} 43. Qg2 {[%clk 0:00:35]}  Bc7+ {[%clk 0:00:52]} 44. Kh1 {[%clk 0:00:21]}  Qb1+ {[%clk 0:00:52]} 45. Qg1 {[%clk 0:00:20]}  Qc2 {[%clk 0:00:51]} 46. Be1 {[%clk 0:00:19]}  Qe2 {[%clk 0:00:49]} 47. Bg3 {[%clk 0:00:17]}  Qf3+ {[%clk 0:00:34]} 48. Kh2 {[%clk 0:00:17]}  Qe2+ {[%clk 0:00:31]} 49. Kh1 {[%clk 0:00:14]}  Qf3+ {[%clk 0:00:25]} 50. Kh2 {[%clk 0:00:15]}  Qe2+ {[%clk 0:00:25]} 51. Kh1 {[%clk 0:00:14]} 1/2-1/2

[Event "December 19 Early 2023"]
[Site "https://www.chess.com"]
[Date "2023.12.19"]
[Round "3"]
[White "Buksa, Nataliya"]
[Black "Yuan, Qingyu"]
[Result "1/2-1/2"]
[Board "89"]
[TimeControl "180+1"]
[WhiteFideId "14123622"]
[BlackFideId "8609772"]
[WhiteElo "2316"]
[BlackElo "2359"]
[WhiteTeam "UKR"]
[BlackTeam "CHN"]
[WhiteClock "0:00:05"]
[BlackClock "0:00:04"]

1. e4 {[%clk 0:03:00]}  e5 {[%clk 0:02:58]} 2. Nf3 {[%clk 0:03:01]}  Nf6 {[%clk 0:02:59]} 3. Nxe5 {[%clk 0:03:01]}  d6 {[%clk 0:02:59]} 4. Nf3 {[%clk 0:03:01]}  Nxe4 {[%clk 0:03:00]} 5. d4 {[%clk 0:03:01]}  d5 {[%clk 0:03:00]} 6. Bd3 {[%clk 0:03:02]}  Nc6 {[%clk 0:02:56]} 7. O-O {[%clk 0:03:01]}  Be7 {[%clk 0:02:57]} 8. c3 {[%clk 0:02:58]}  Bf5 {[%clk 0:02:56]} 9. Bc2 {[%clk 0:02:56]}  O-O {[%clk 0:02:54]} 10. Nbd2 {[%clk 0:02:56]}  Re8 {[%clk 0:02:36]} 11. Re1 {[%clk 0:02:55]}  Nd6 {[%clk 0:02:31]} 12. Bxf5 {[%clk 0:02:53]}  Nxf5 {[%clk 0:02:31]} 13. Ne5 {[%clk 0:02:47]}  Nxe5 {[%clk 0:02:23]} 14. dxe5 {[%clk 0:02:48]}  Bc5 {[%clk 0:02:18]} 15. Nf3 {[%clk 0:02:45]}  h6 {[%clk 0:02:09]} 16. Qd3 {[%clk 0:02:40]}  Qd7 {[%clk 0:02:08]} 17. Bf4 {[%clk 0:02:34]}  Rad8 {[%clk 0:02:06]} 18. Rad1 {[%clk 0:02:33]}  c6 {[%clk 0:02:04]} 19. h3 {[%clk 0:02:27]}  Qe6 {[%clk 0:02:03]} 20. g4 {[%clk 0:02:16]}  Ne7 {[%clk 0:02:03]} 21. Nd4 {[%clk 0:02:16]}  Bxd4 {[%clk 0:01:43]} 22. cxd4 {[%clk 0:02:17]}  f5 {[%clk 0:01:20]} 23. exf6 {[%clk 0:02:05]}  Qxf6 {[%clk 0:01:20]} 24. Be5 {[%clk 0:02:05]}  Qf7 {[%clk 0:01:11]} 25. f4 {[%clk 0:02:05]}  Nc8 {[%clk 0:01:09]} 26. f5 {[%clk 0:02:03]}  Nd6 {[%clk 0:01:08]} 27. Bxd6 {[%clk 0:01:54]}  Rxd6 {[%clk 0:01:09]} 28. Qa3 {[%clk 0:01:54]}  Rdd8 {[%clk 0:00:57]} 29. Qxa7 {[%clk 0:01:50]}  Qc7 {[%clk 0:00:42]} 30. Qa3 {[%clk 0:01:35]}  Qf4 {[%clk 0:00:37]} 31. Kg2 {[%clk 0:01:29]}  Ra8 {[%clk 0:00:37]} 32. Qd3 {[%clk 0:01:22]}  Rxe1 {[%clk 0:00:30]} 33. Rxe1 {[%clk 0:01:22]}  Rxa2 {[%clk 0:00:18]} 34. Re8+ {[%clk 0:01:21]}  Kf7 {[%clk 0:00:18]} 35. Qe2 {[%clk 0:01:20]}  Rxb2 {[%clk 0:00:15]} 36. Re7+ {[%clk 0:01:19]}  Kf8 {[%clk 0:00:15]} 37. Qxb2 {[%clk 0:01:14]}  Kxe7 {[%clk 0:00:15]} 38. Qxb7+ {[%clk 0:01:15]}  Kf8 {[%clk 0:00:14]} 39. Qc8+ {[%clk 0:01:14]}  Kf7 {[%clk 0:00:14]} 40. Qe6+ {[%clk 0:01:15]}  Kf8 {[%clk 0:00:14]} 41. Qe5 {[%clk 0:00:37]}  Qd2+ {[%clk 0:00:14]} 42. Kg3 {[%clk 0:00:36]}  Qd3+ {[%clk 0:00:13]} 43. Kh4 {[%clk 0:00:36]}  Qd2 {[%clk 0:00:13]} 44. Qd6+ {[%clk 0:00:34]}  Kg8 {[%clk 0:00:12]} 45. Qe6+ {[%clk 0:00:25]}  Kf8 {[%clk 0:00:12]} 46. Qc8+ {[%clk 0:00:21]}  Kf7 {[%clk 0:00:12]} 47. Qc7+ {[%clk 0:00:18]}  Kg8 {[%clk 0:00:11]} 48. Qd8+ {[%clk 0:00:17]}  Kh7 {[%clk 0:00:11]} 49. Qe7 {[%clk 0:00:15]}  Qxd4 {[%clk 0:00:09]} 50. Qe8 {[%clk 0:00:11]}  Qf6+ {[%clk 0:00:07]} 51. Kg3 {[%clk 0:00:11]}  Qd6+ {[%clk 0:00:07]} 52. Kf3 {[%clk 0:00:09]}  d4 {[%clk 0:00:07]} 53. h4 {[%clk 0:00:09]}  Qf6 {[%clk 0:00:04]} 54. Kg3 {[%clk 0:00:05]}  Qd6+ {[%clk 0:00:05]} 55. Kf3 {[%clk 0:00:06]}  Qd5+ {[%clk 0:00:04]} 56. Kf4 {[%clk 0:00:05]}  Qd6+ {[%clk 0:00:04]} 57. Kf3 {[%clk 0:00:05]} 1/2-1/2

[Event "December 19 Early 2023"]
[Site "https://www.chess.com"]
[Date "2023.12.19"]
[Round "3"]
[White "Postny, Evgeny"]
[Black "Azali, Tannaz"]
[Result "1-0"]
[Board "91"]
[TimeControl "180+1"]
[WhiteFideId "2804344"]
[BlackFideId "12537721"]
[WhiteElo "2505"]
[BlackElo "1828"]
[WhiteTeam "ISR"]
[BlackTeam "IRI"]
[WhiteClock "0:00:05"]
[BlackClock "0:00:19"]

1. e4 {[%clk 0:02:56]}  c5 {[%clk 0:02:59]} 2. Nf3 {[%clk 0:02:52]}  e6 {[%clk 0:02:59]} 3. b3 {[%clk 0:02:52]}  a6 {[%clk 0:02:58]} 4. Bb2 {[%clk 0:02:51]}  Nc6 {[%clk 0:02:59]} 5. c4 {[%clk 0:02:50]}  d6 {[%clk 0:02:47]} 6. d4 {[%clk 0:02:46]}  cxd4 {[%clk 0:02:46]} 7. Nxd4 {[%clk 0:02:47]}  Nge7 {[%clk 0:02:44]} 8. Be2 {[%clk 0:02:42]}  Nxd4 {[%clk 0:02:44]} 9. Qxd4 {[%clk 0:02:37]}  Nc6 {[%clk 0:02:44]} 10. Qe3 {[%clk 0:02:37]}  e5 {[%clk 0:02:40]} 11. O-O {[%clk 0:02:32]}  Be7 {[%clk 0:02:40]} 12. Nc3 {[%clk 0:02:27]}  Be6 {[%clk 0:02:39]} 13. Nd5 {[%clk 0:02:27]}  Bxd5 {[%clk 0:02:36]} 14. exd5 {[%clk 0:02:19]}  Nb8 {[%clk 0:02:32]} 15. f4 {[%clk 0:02:16]}  exf4 {[%clk 0:02:26]} 16. Rxf4 {[%clk 0:02:06]}  O-O {[%clk 0:02:20]} 17. Raf1 {[%clk 0:01:58]}  Nd7 {[%clk 0:02:18]} 18. Qg3 {[%clk 0:01:32]}  Ne5 {[%clk 0:02:14]} 19. Rf5 {[%clk 0:01:27]}  f6 {[%clk 0:02:12]} 20. Rh5 {[%clk 0:01:16]}  b5 {[%clk 0:02:04]} 21. Qh3 {[%clk 0:01:12]}  h6 {[%clk 0:02:00]} 22. Qe6+ {[%clk 0:01:08]}  Kh8 {[%clk 0:01:57]} 23. Bg4 {[%clk 0:00:42]}  bxc4 {[%clk 0:01:53]} 24. Bf5 {[%clk 0:00:41]}  Qc7 {[%clk 0:01:25]} 25. Bxe5 {[%clk 0:00:33]}  dxe5 {[%clk 0:01:20]} 26. Bb1 {[%clk 0:00:27]}  Bc5+ {[%clk 0:00:54]} 27. Kh1 {[%clk 0:00:26]}  Qf7 {[%clk 0:00:55]} 28. Qf5 {[%clk 0:00:24]}  Qg8 {[%clk 0:00:48]} 29. Qg6 {[%clk 0:00:20]}  Ra7 {[%clk 0:00:46]} 30. Rf3 {[%clk 0:00:16]}  f5 {[%clk 0:00:39]} 31. Rfxf5 {[%clk 0:00:11]}  Rxf5 {[%clk 0:00:35]} 32. Rxf5 {[%clk 0:00:06]}  e4 {[%clk 0:00:30]} 33. Bxe4 {[%clk 0:00:06]}  Re7 {[%clk 0:00:31]} 34. Rf1 {[%clk 0:00:06]}  c3 {[%clk 0:00:19]} 35. Rf8 {[%clk 0:00:05]} 1-0